[Event "FISU WUMSCC Men 2024"]
[Site "Entebbe"]
[Date "2024.06.25"]
[Round "2.9"]
[White "Szustakowski, Antoni"]
[Black "Almuntasir, mohamed khalifah"]
[Result "1-0"]
[ECO "E01"]
[WhiteElo "2362"]
[BlackElo "1724"]
[Annotator "RC"]
[PlyCount "25"]
[EventDate "2024.06.24"]
[EventType "swiss"]
[EventCountry "UGA"]
[SourceTitle "playchess.com"]
[Source "ChessBase"]
[SourceQuality "1"]
[TimeControl "5400+30"]

1. Nf3 {[%emt 0:00:03]} e6 {[%emt 0:00:23]} 2. g3 {[%emt 0:00:06]} d5 {[%emt 0:00:09]} 3. Bg2 {[%emt 0:00:05]} Nf6 {[%emt 0:00:17]} 4. O-O {[%emt 0:00:11]} Bd6 {[%emt 0:00:10]} 5. c4 {[%emt 0:00:09]} O-O {[%emt 0:00:24]} 6. d4 {[%emt 0:00:13]} c6 {[%emt 0:01:02]} 7. Nbd2 {[%emt 0:00:06]} b6 {[%emt 0:01:39]} 8. Qc2 {[%emt 0:00:11]} Bb7 {[%emt 0:00:29]} 9. e4 {[%emt 0:00:18]} Nxe4 {[%emt 0:02:44]} 10. Nxe4 {[%emt 0:00:05]} dxe4 {[%emt 0:00:11]} 11. Qxe4 {[%emt 0:00:06]} Nd7 {[%emt 0:01:02]} 12. Qc2 {[%emt 0:17:57]} c5 {[%emt 0:01:32]} 13. Ng5 {[%emt 0:00:06]} 1-0

[Event "FISU WUMSCC Men 2024"]
[Site "Entebbe"]
[Date "2024.06.25"]
[Round "2.10"]
[White "Alfaitori, Abdallah"]
[Black "Kabuye Charity Raphael"]
[Result "1-0"]
[ECO "D02"]
[WhiteElo "1947"]
[BlackElo "1761"]
[Annotator "NA RC"]
[PlyCount "111"]
[EventDate "2024.06.24"]
[EventType "swiss"]
[EventCountry "UGA"]
[SourceTitle "playchess.com"]
[Source "ChessBase"]
[SourceQuality "1"]
[TimeControl "5400+30"]

1. d4 {[%emt 0:01:59]} d5 {[%emt 0:02:09]} 2. Nf3 {[%emt 0:00:12]} Nf6 {[%emt 0:00:09]} 3. Bf4 {[%emt 0:00:17]} e6 {[%emt 0:01:19]} 4. e3 {[%emt 0:00:33]} c5 {[%emt 0:00:27]} 5. Nbd2 {[%emt 0:02:58]} Bd6 {[%emt 0:01:20]} 6. Bxd6 {[%emt 0:02:02]} Qxd6 {[%emt 0:01:49]} 7. dxc5 {[%emt 0:01:06]} Qxc5 {[%emt 0:01:05]} 8. c4 {[%emt 0:00:28]} Nc6 {[%emt 0:01:21]} 9. Be2 {[%emt 0:04:35]} O-O {[%emt 0:00:55]} 10. O-O {[%emt 0:00:21]} d4 {[%emt 0:01:26]} 11. Nb3 {[%emt 0:00:36]} Qb6 {[%emt 0:04:50]} 12. exd4 {[%emt 0:01:27]} Rd8 {[%emt 0:00:24]} 13. Bd3 {[%emt 0:07:35]} a5 {[%emt 0:01:41]} 14. c5 {[%emt 0:01:23]} Qc7 {[%emt 0:00:18]} 15. Bb5 {[%emt 0:09:10]} a4 {[%emt 0:01:35]} 16. Bxc6 $1 {[%emt 0:10:31]} axb3 {[%emt 0:00:25]} 17. Bb5 {[%emt 0:01:00]} bxa2 {[%emt 0:01:09]} 18. Qb3 {[%emt 0:06:02]} b6 $11 {[%emt 0:02:01]} 19. Rfc1 {[%emt 0:02:38]} bxc5 {[%emt 0:06:47]} 20. Rxa2 {[%emt 0:05:45]} Rxa2 {[%emt 0:00:34]} 21. Qxa2 {[%emt 0:00:08]} Qb6 {[%emt 0:03:32]} 22. Qc4 {[%emt 0:05:14]} Bd7 {[%emt 0:10:05]} 23. Bxd7 {[%emt 0:02:41]} Nxd7 {[%emt 0:00:30]} 24. dxc5 {[%emt 0:10:41]} Qxc5 {[%emt 0:00:58]} 25. Qxc5 {[%emt 0:06:42]} Nxc5 {[%emt 0:00:08]} 26. g3 {[%emt 0:00:54]} Ne4 {[%emt 0:01:16]} 27. b4 {[%emt 0:03:28]} g6 {[%emt 0:04:26]} 28. Kf1 {[%emt 0:05:48]} Nd2+ {[%emt 0:00:26]} 29. Nxd2 {[%emt 0:00:45]} Rxd2 {[%emt 0:00:04]} 30. Rb1 {[%emt 0:00:15]} Rd6 {[%emt 0:01:00]} 31. b5 {[%emt 0:01:31]} Rb6 {[%emt 0:00:52]} 32. Ke2 {[%emt 0:00:02]} Kf8 {[%emt 0:00:55]} 33. Kd3 {[%emt 0:00:06]} Ke7 {[%emt 0:00:29]} 34. Kc4 {[%emt 0:00:25]} Kd6 {[%emt 0:00:30]} 35. Kb4 {[%emt 0:04:31]} Rb8 {[%emt 0:00:41]} 36. Rc1 {[%emt 0:00:36]} Ra8 {[%emt 0:01:19]} 37. b6 {[%emt 0:00:46]} Ra2 {[%emt 0:00:27]} 38. Kb5 {[%emt 0:02:54]} Rb2+ {[%emt 0:09:32]} 39. Ka6 {[%emt 0:00:11]} Rxf2 {[%emt 0:09:49]} 40. b7 {[%emt 0:01:10]} Ra2+ {[%emt 0:00:09]} 41. Kb6 {[%emt 0:00:21]} Rb2+ {[%emt 0:00:11]} 42. Ka7 {[%emt 0:00:21]} Ra2+ {[%emt 0:00:14]} 43. Kb8 {[%emt 0:00:07]} Kd7 {[%emt 0:18:15]} 44. Rc7+ {[%emt 0:01:17]} Kd8 {[%emt 0:01:05]} 45. h4 {[%emt 0:00:54]} Rf2 {[%emt 0:01:29]} 46. Rc3 {[%emt 0:00:14]} Ra2 {[%emt 0:01:25]} 47. Rc6 {[%emt 0:00:25]} Ra3 {[%emt 0:01:11]} 48. Rd6+ {[%emt 0:00:17]} Ke7 {[%emt 0:00:24]} 49. Kc7 {[%emt 0:00:23]} Ra7 {[%emt 0:01:50]} 50. Rd3 {[%emt 0:00:30]} e5 {[%emt 0:03:06]} 51. Kc8 {[%emt 0:00:47]} Rxb7 {[%emt 0:02:45]} 52. Kxb7 {[%emt 0:00:02]} f5 {[%emt 0:00:16]} 53. Kc6 {[%emt 0:00:16]} e4 {[%emt 0:00:53]} 54. Rd6 {[%emt 0:00:49]} h6 {[%emt 0:00:41]} 55. Rxg6 {[%emt 0:00:31]} e3 {[%emt 0:00:04]} 56. Kd5 {[%emt 0:00:10]} 1-0